bitfinex/quotes_BTCUSD_20251117
["timestamp","ask_amount","ask_price","bid_price","bid_amount"]
[1763418232647,0.00043748,92459.0,92453.0,0.02134848]
[1763418234116,0.00043748,92459.0,92453.0,0.001]
[1763418234956,0.00043748,92459.0,92451.0,0.03513]
[1763418235373,0.00043748,92459.0,92453.0,0.001]
[1763418236828,0.00043748,92459.0,92451.0,0.03513]
[1763418237033,0.00043748,92459.0,92451.0,0.03613]
[1763418237257,0.00043748,92459.0,92452.0,0.0248223]
[1763418238181,0.00043748,92459.0,92453.0,0.001]
[1763418238583,0.00043748,92459.0,92452.0,0.0248223]
[1763418238785,0.00043748,92459.0,92451.0,0.03513]
[1763418239742,0.00043748,92459.0,92452.0,0.001]
[1763418240218,0.00043748,92459.0,92451.0,0.03513]
[1763418240622,0.00043748,92459.0,92451.0,0.03613]
[1763418241743,0.00043748,92459.0,92452.0,0.0129797]
[1763418241947,0.00043748,92459.0,92453.0,0.01455166]
[1763418242176,0.00043748,92459.0,92458.0,0.07717]
[1763418243797,0.00043748,92459.0,92458.0,0.07817]
[1763418244553,0.00043748,92459.0,92458.0,0.001]
[1763418247419,2.00043748,92459.0,92458.0,0.001]
[1763418247632,2.02237734,92459.0,92458.0,0.001]
[1763418247807,2.02237826,92459.0,92458.0,0.001]
[1763418248817,2.02237826,92459.0,92418.0,0.10859296]
[1763418248818,2.02237826,92459.0,92421.0,0.05782184]
[1763418249031,0.96465818,92442.0,92433.0,0.0108593]
[1763418249224,0.96465818,92442.0,92410.0,0.10359]
[1763418249225,0.96465818,92442.0,92415.0,0.05782184]
[1763418249429,0.96465818,92425.0,92420.0,0.10859296]
[1763418250019,0.96465818,92425.0,92422.0,0.10859296]
[1763418250203,0.96465818,92432.0,92422.0,0.10859296]
[1763418250652,0.96474332,92432.0,92422.0,0.10859296]
[1763418250825,0.96474332,92432.0,92423.0,0.0108593]
[1763418251414,0.96474332,92432.0,92422.0,0.10859296]
[1763418252415,0.96474332,92432.0,92422.0,0.10959296]
[1763418253162,8.514e-05,92432.0,92431.0,0.04321]
[1763418253380,8.514e-05,92432.0,92423.0,0.08261378]
[1763418253550,8.514e-05,92432.0,92424.0,0.02261667]
[1763418253728,0.96465818,92433.0,92424.0,0.02261667]
[1763418254339,0.96465818,92433.0,92432.0,0.04321]
[1763418254521,0.96465818,92442.0,92432.0,0.04321]
[1763418254721,0.96509534,92442.0,92441.0,0.10859296]
[1763418254906,0.00043716,92442.0,92441.0,0.11945226]
[1763418255321,0.00043716,92442.0,92441.0,0.19662226]
[1763418255519,0.00043716,92442.0,92441.0,0.20960351]
[1763418255715,0.00043716,92442.0,92430.0,0.03396]
[1763418255716,0.00043716,92442.0,92424.0,0.05782184]
[1763418255939,0.00043716,92442.0,92421.0,0.04971304]
[1763418255940,2.0,92429.0,92421.0,0.04971304]
[1763418256150,0.00169759,92404.0,92379.0,0.10359]
[1763418256364,0.02029965,92403.0,92391.0,0.03396]
[1763418256589,0.03896023,92447.0,92391.0,0.03396]
[1763418256590,0.96465818,92420.0,92401.0,0.03396]
[1763418256793,0.96465818,92420.0,92419.0,0.03396]
[1763418257050,0.96465818,92429.0,92412.0,0.01298532]
[1763418257266,0.96465818,92422.0,92413.0,0.01647883]
[1763418257490,0.04341874,92459.0,92413.0,0.01647883]
[1763418257708,0.0159849,92460.0,92414.0,0.01298504]
[1763418257709,0.96465818,92440.0,92414.0,0.01298504]
[1763418257912,0.0056743,92421.0,92414.0,0.05640378]
[1763418258117,0.96465818,92450.0,92414.0,0.05640378]
[1763418258118,0.96465818,92450.0,92420.0,0.04854]
[1763418258343,0.96489153,92450.0,92421.0,0.03084344]
[1763418258540,0.96489153,92450.0,92422.0,0.07365]
[1763418258698,0.96489153,92450.0,92423.0,0.01298378]
[1763418259109,0.96489153,92450.0,92424.0,0.07365]
[1763418259312,0.96489153,92440.0,92421.0,0.01785938]
[1763418259514,0.96489153,92440.0,92422.0,0.00915094]
[1763418261292,2.0,92451.0,92422.0,0.00915094]
[1763418262384,2.0,92451.0,92422.0,0.08380094]
[1763418262783,2.0,92451.0,92422.0,0.08280094]
[1763418263228,0.00567363,92458.0,92424.0,0.10859296]
[1763418263348,2.0,92456.0,92425.0,0.03212289]
[1763418263550,2.0,92457.0,92425.0,0.09278939]
[1763418264004,2.0,92457.0,92426.0,0.07365]
[1763418264208,0.00567363,92458.0,92456.0,0.08311]
[1763418264363,0.00567363,92458.0,92457.0,0.096089]
[1763418264564,0.00567363,92458.0,92457.0,0.0961759]
[1763418264786,0.00567363,92458.0,92457.0,0.1698259]
[1763418265361,0.00611079,92458.0,92457.0,0.1698259]
[1763418265577,0.00611079,92458.0,92457.0,0.1708259]
[1763418265783,0.00611079,92458.0,92457.0,0.0971759]
[1763418265982,0.00611079,92458.0,92457.0,0.0961759]
[1763418266389,0.00611079,92458.0,92457.0,0.0971759]
[1763418267455,0.00611079,92458.0,92457.0,0.0140659]
[1763418267670,0.00611079,92458.0,92457.0,0.001]
[1763418270523,0.00611079,92458.0,92443.0,0.03457]
[1763418270742,0.00611079,92458.0,92457.0,0.001]
[1763418271346,0.00611079,92458.0,92443.0,0.03457]
[1763418271581,0.00611079,92458.0,92443.0,0.03557]
[1763418272220,0.00611079,92458.0,92443.0,0.03457]
[1763418272432,0.00611079,92458.0,92457.0,0.001]
[1763418272987,2.0,92469.0,92457.0,0.001]
[1763418273187,0.10859296,92464.0,92457.0,0.001]
[1763418273613,0.0002429,92463.0,92443.0,0.03457]
[1763418273819,0.0002429,92463.0,92444.0,0.010279]
[1763418274227,0.0002429,92463.0,92443.0,0.03557]
[1763418274228,0.0002429,92463.0,92443.0,0.03457]
[1763418274686,0.96489153,92460.0,92457.0,0.001]
[1763418274885,0.0002429,92463.0,92457.0,0.001]
[1763418274886,2.0,92463.0,92457.0,0.001]
[1763418275090,0.0002429,92461.0,92437.0,0.03591]
[1763418275328,0.0002429,92461.0,92443.0,0.001]
[1763418276089,0.10859296,92450.0,92443.0,0.001]
[1763418276488,0.0002429,92449.0,92443.0,0.001]
[1763418277063,0.0002429,92449.0,92430.0,0.03457]
[1763418277267,0.0002429,92449.0,92437.0,0.001]
[1763418277810,2.0,92466.0,92438.0,0.06822]
[1763418278136,0.10884572,92465.0,92439.0,0.010413]
[1763418278413,2.0,92464.0,92439.0,0.02339453]
[1763418278751,0.00025276,92463.0,92440.0,0.06822]
[1763418278878,2.0,92462.0,92441.0,0.01298125]
[1763418279087,2.0,92462.0,92442.0,0.01275243]
[1763418279299,0.00025276,92461.0,92443.0,0.01298097]
[1763418279557,2.0,92464.0,92443.0,0.01298097]
[1763418282005,0.10666731,92465.0,92444.0,0.06822]
[1763418282208,0.10666731,92465.0,92445.0,0.02110079]
[1763418282660,0.10666731,92465.0,92430.0,0.03457]
[1763418282661,0.10666731,92465.0,92418.0,0.2]
[1763418282662,0.10859296,92446.0,92418.0,0.2]
[1763418282796,0.10859296,92446.0,92364.0,0.03591]
[1763418282797,2.0,92427.0,92366.0,0.07772629]
[1763418282997,2.0,92427.0,92365.0,0.03591]
[1763418282998,2.0,92419.0,92381.0,0.06822]
[1763418283241,0.14755319,92446.0,92370.0,0.96489153]
[1763418283242,2.0,92417.0,92387.0,0.06822]
[1763418283417,1.77848736,92429.0,92388.0,0.01298869]
[1763418283620,0.96489153,92420.0,92374.0,0.06822]
[1763418283921,2.0,92411.0,92402.0,0.00066731]
[1763418284388,2.0,92440.0,92402.0,0.00066731]
[1763418284584,2.0,92419.0,92402.0,0.00066731]
[1763418284824,2.0,92417.0,92402.0,0.00066731]
[1763418284993,2.0,92415.0,92402.0,0.00066731]
[1763418285192,2.0,92419.0,92402.0,0.00066731]
[1763418285394,2.0,92417.0,92402.0,0.00066731]
[1763418285637,0.96489153,92412.0,92402.0,0.00066731]
[1763418285816,2.0,92411.0,92402.0,0.00066731]
[1763418286886,0.10859296,92407.0,92402.0,0.00066731]
[1763418287987,0.96489153,92412.0,92402.0,0.00066731]
[1763418288190,2.0,92409.0,92402.0,0.00066731]
[1763418288609,2.0,92409.0,92402.0,0.00166731]
[1763418289854,2.0,92409.0,92402.0,0.00066731]
[1763418290050,2.0,92409.0,92402.0,0.00166731]
[1763418298330,0.62462428,92412.0,92408.0,0.04925]
[1763418298471,0.10859296,92432.0,92402.0,0.00166731]
[1763418298472,2.0,92417.0,92402.0,0.00166731]
[1763418298670,0.62462428,92412.0,92402.0,0.01224704]
[1763418299193,0.62462428,92412.0,92402.0,0.00066731]
[1763418300436,2.0,92410.0,92402.0,0.00066731]
[1763418300638,2.0,92408.0,92402.0,0.00066731]
[1763418300834,2.0,92406.0,92402.0,0.00066731]
[1763418301182,2.0,92404.0,92402.0,0.00066731]
[1763418301298,2.49849712,92412.0,92402.0,0.00066731]
[1763418301299,2.54655089,92403.0,92402.0,0.00066731]
[1763418301500,2.03031766,92403.0,92402.0,0.00066731]
[1763418302895,2.03031766,92403.0,92402.0,0.00166731]
[1763418303319,2.03031766,92403.0,92402.0,0.00066731]
[1763418305136,2.03031766,92403.0,92340.0,0.04268999]
[1763418305137,2.0,92402.0,92283.0,0.02299799]
[1763418305395,2.0,92402.0,92190.0,0.2]
[1763418305396,2.0,92349.0,92290.0,0.62462428]
[1763418305595,2.0,92349.0,92291.0,0.09689593]
[1763418305596,0.00043662,92349.0,92291.0,0.09689593]
[1763418305738,0.62383065,92340.0,92292.0,0.01004076]
[1763418305970,0.00043662,92349.0,92320.0,0.00999999]
[1763418306173,0.00043662,92349.0,92331.0,0.04341874]
[1763418306373,0.00043662,92349.0,92332.0,0.02303733]
[1763418306601,0.00043662,92349.0,92340.0,0.06341872]
[1763418306759,0.00043662,92349.0,92341.0,0.15531547]
[1763418306963,0.00043662,92349.0,92343.0,0.04341874]
[1763418307168,0.00043662,92349.0,92341.0,0.08179961]
[1763418307169,0.00043662,92349.0,92345.0,0.04341874]
[1763418307377,0.03259698,92406.0,92341.0,0.08179961]
[1763418307378,0.02556,92414.0,92380.0,0.00999999]
[1763418307575,0.55112,92464.0,92398.0,0.03269]
[1763418307950,0.00567567,92436.0,92400.0,0.05341873]
[1763418308161,0.00567567,92436.0,92410.0,0.62462428]
[1763418308345,0.02556,92463.0,92410.0,0.62462428]
[1763418308346,2.0,92462.0,92435.0,0.03269]
[1763418308488,0.00567416,92463.0,92436.0,0.03009712]
[1763418308690,0.10859296,92469.0,92437.0,0.03637583]
[1763418308896,0.62462428,92460.0,92438.0,0.03009712]
[1763418309137,0.02556,92475.0,92439.0,0.04307865]
[1763418309138,0.00567349,92462.0,92439.0,0.04307865]
[1763418309341,0.00567349,92462.0,92440.0,0.71814012]
[1763418309342,0.00043716,92462.0,92440.0,0.71814012]
[1763418309514,0.00043716,92462.0,92461.0,0.03269]
[1763418309714,0.00043716,92462.0,92461.0,0.06278712]
[1763418309966,0.00043716,92462.0,92461.0,0.12971712]
[1763418310094,0.00043716,92462.0,92461.0,0.1861143]
[1763418310295,0.00567189,92489.0,92470.0,0.00999999]
[1763418310518,0.00013112,92489.0,92481.0,0.04341874]
[1763418310732,0.00013112,92489.0,92483.0,0.04341874]
[1763418310942,0.00013112,92489.0,92485.0,0.04341874]
[1763418311163,1.12e-06,92489.0,92487.0,0.04341874]
[1763418311369,1.12e-06,92489.0,92484.0,0.14004156]
[1763418311370,0.0002,92510.0,92501.0,0.04341874]
[1763418311567,0.0002,92510.0,92500.0,0.01999998]
[1763418311568,9e-05,92518.0,92510.0,0.00999999]
[1763418311819,0.00022105,92518.0,92512.0,0.04341874]
[1763418312024,0.00022105,92518.0,92513.0,0.03009712]
[1763418312222,0.00022105,92518.0,92514.0,0.03009712]
[1763418312503,0.00022105,92518.0,92515.0,0.03009712]
[1763418312658,0.00022105,92518.0,92501.0,0.001]
[1763418312659,0.00022105,92518.0,92516.0,0.03009712]
[1763418312861,0.00022105,92518.0,92490.0,0.00999999]
[1763418312862,0.00022105,92518.0,92517.0,0.03009712]
[1763418313343,0.00022105,92518.0,92517.0,0.09702712]
[1763418313515,0.00022105,92518.0,92517.0,0.10656809]
[1763418313918,0.00022105,92518.0,92517.0,0.02983538]
[1763418314334,0.00022105,92518.0,92517.0,0.01004076]
[1763418314534,0.02598105,92518.0,92517.0,0.01004076]
[1763418314810,2.0,92517.0,92493.0,0.01978087]
[1763418315036,0.323,92502.0,92494.0,0.00989603]
[1763418315236,0.323,92502.0,92495.0,0.00989603]
[1763418315443,0.323,92502.0,92496.0,0.00989603]
[1763418315785,0.323,92502.0,92497.0,0.00989603]
[1763418315993,0.323,92502.0,92498.0,0.02968378]
[1763418316114,0.323,92509.0,92499.0,0.00989603]
[1763418316316,0.323,92509.0,92500.0,0.00989603]
[1763418316612,0.323,92509.0,92501.0,0.00989603]
[1763418317026,0.323,92505.0,92502.0,0.0014844]
[1763418317251,0.323,92505.0,92430.0,0.62462428]
[1763418317252,0.323,92503.0,92453.0,0.06693]
[1763418317467,0.323,92479.0,92461.0,0.0049035]
[1763418317683,0.323,92479.0,92453.0,0.01545122]
[1763418318582,0.323,92489.0,92454.0,0.01297942]
[1763418318794,0.323,92489.0,92460.0,0.00999999]
[1763418319008,0.323,92489.0,92461.0,0.05639718]
[1763418319223,0.323,92489.0,92462.0,0.00663972]
[1763418319672,0.323,92499.0,92463.0,0.01297816]
[1763418320097,0.323,92499.0,92464.0,0.07011]
[1763418320537,0.323,92499.0,92465.0,0.01297788]
[1763418320745,0.323,92499.0,92466.0,0.01431463]
[1763418321021,0.62462428,92500.0,92466.0,0.08442463]
[1763418321243,0.62462428,92500.0,92467.0,0.0129776]
[1763418321900,9e-05,92518.0,92471.0,0.04341874]
[1763418322083,9e-05,92518.0,92480.0,0.00999999]
[1763418322537,9e-05,92518.0,92481.0,0.07011]
[1763418323371,9e-05,92518.0,92482.0,0.01297549]
[1763418323802,0.00022105,92518.0,92483.0,0.14953874]
[1763418324018,0.00022105,92518.0,92490.0,0.00999999]
[1763418324229,0.00022105,92518.0,92491.0,0.05639297]
[1763418324445,0.00022105,92518.0,92493.0,0.04341874]
[1763418324868,0.00022105,92518.0,92495.0,0.04341874]
[1763418325097,0.00022105,92518.0,92500.0,0.02462]
[1763418325300,0.00022105,92518.0,92517.0,0.03601]
[1763418326257,0.00022105,92518.0,92493.0,0.001]
[1763418326258,0.07055105,92518.0,92493.0,0.001]
[1763418326470,0.62462428,92503.0,92493.0,0.001]
[1763418327613,0.62462428,92510.0,92484.0,0.01297521]
[1763418327850,0.62462428,92510.0,92485.0,0.01190952]
[1763418327977,0.62462428,92510.0,92486.0,0.01297493]
[1763418328629,0.62462428,92510.0,92493.0,0.001]
[1763418328833,0.62462428,92510.0,92493.0,0.01397395]
[1763418329037,0.62462428,92510.0,92494.0,0.00987007]
[1763418329214,0.62462428,92510.0,92495.0,0.00987007]
[1763418329430,0.62462428,92510.0,92496.0,0.00987007]
[1763418329645,0.62462428,92510.0,92497.0,0.00987007]
[1763418329847,0.35723,92509.0,92498.0,0.00987007]
[1763418330093,0.35723,92509.0,92475.0,0.03601]
[1763418330094,0.323,92507.0,92499.0,0.00987007]
[1763418330327,0.323,92507.0,92448.0,0.03428]
[1763418330328,0.323,92507.0,92430.0,0.0737]
[1763418330329,2.0,92503.0,92430.0,0.0737]
[1763418330533,0.323,92469.0,92443.0,0.00987869]
[1763418330735,0.323,92469.0,92444.0,0.02285952]
[1763418330929,0.323,92469.0,92445.0,0.00987869]
[1763418330930,0.323,92459.0,92445.0,0.00987869]
[1763418331155,0.323,92459.0,92446.0,0.00987869]
[1763418331386,0.323,92459.0,92436.0,0.00987869]
[1763418331559,0.323,92459.0,92437.0,0.0099013]
[1763418331560,0.62462428,92450.0,92437.0,0.0099013]
[1763418331761,0.323,92449.0,92444.0,0.001]
[1763418331968,0.323,92447.0,92444.0,0.001]
[1763418332162,2.10859296,92448.0,92444.0,0.001]
[1763418332163,2.323,92445.0,92444.0,0.001]
[1763418332375,2.0,92442.0,92437.0,0.00043716]
[1763418332551,0.41086656,92441.0,92437.0,0.00043716]
[1763418332754,0.323,92439.0,92437.0,0.00043716]
[1763418332954,2.73462107,92438.0,92437.0,0.00043716]
[1763418333155,2.23462107,92438.0,92437.0,0.00043716]
[1763418334588,2.05353731,92438.0,92437.0,0.00043716]
[1763418335547,0.323,92438.0,92437.0,0.00043716]
[1763418335751,1.9824658,92470.0,92437.0,0.00043716]
[1763418335953,2.0,92448.0,92437.0,0.00043716]
[1763418336213,0.0022382,92464.0,92437.0,0.00043716]
[1763418336416,0.0022382,92464.0,92438.0,0.00997199]
[1763418336417,0.62462428,92450.0,92438.0,0.00997199]
[1763418336624,0.62462428,92450.0,92439.0,0.00997199]
[1763418336829,0.323,92449.0,92440.0,0.02295338]
[1763418337029,0.323,92449.0,92441.0,0.00997199]
[1763418337250,0.323,92449.0,92442.0,0.0229531]
[1763418337423,0.62462428,92450.0,92443.0,0.00997199]
[1763418337724,0.323,92449.0,92444.0,0.02295282]
[1763418337899,0.323,92449.0,92445.0,0.00997199]
[1763418338111,0.323,92449.0,92439.0,0.001]
[1763418338112,0.323,92447.0,92446.0,0.00997199]
[1763418338340,0.323,92447.0,92437.0,0.00043716]
[1763418338561,0.323,92447.0,92438.0,0.00998321]
[1763418338889,0.323,92447.0,92437.0,0.00043716]
[1763418338890,0.00973497,92446.0,92443.0,0.001]
[1763418339214,0.04559,92445.0,92443.0,0.001]
[1763418339410,0.00973497,92444.0,92443.0,0.001]
[1763418339610,2.83273497,92444.0,92443.0,0.001]
[1763418339982,0.323,92443.0,92437.0,0.00043716]
[1763418340130,0.323,92439.0,92437.0,0.00143716]
[1763418340330,2.33273497,92438.0,92437.0,0.00066716]
[1763418340513,2.0,92438.0,92396.0,0.00998438]
[1763418340709,0.62462428,92410.0,92397.0,0.00998438]
[1763418340956,0.62462428,92410.0,92396.0,0.00013112]
[1763418342875,0.01819,92431.0,92409.0,0.04577]
[1763418343095,0.62462428,92420.0,92410.0,0.0129856]
[1763418343316,0.62462428,92420.0,92411.0,0.00587556]
[1763418343646,0.62462428,92420.0,92412.0,0.01298532]
[1763418344251,0.62462428,92420.0,92396.0,0.07383112]
[1763418344252,0.323,92419.0,92397.0,0.01298743]
[1763418344421,0.62462428,92420.0,92397.0,0.01298743]
[1763418344625,0.323,92419.0,92397.0,0.08668743]
[1763418344851,0.323,92419.0,92412.0,0.001]
[1763418345604,0.323,92419.0,92412.0,0.01398532]
[1763418345941,0.323,92419.0,92412.0,0.01298532]
[1763418346149,0.62462428,92430.0,92418.0,0.04577]
[1763418346352,0.62462428,92430.0,92419.0,0.05164553]
[1763418346880,0.323,92429.0,92419.0,0.05164553]
[1763418348005,0.323,92429.0,92419.0,0.00687553]
[1763418348988,0.323,92429.0,92419.0,0.00587553]
[1763418349390,0.323,92429.0,92419.0,0.00687553]
[1763418349891,0.62462428,92440.0,92428.0,0.03428]
[1763418350702,0.62462428,92440.0,92408.0,0.03428]
[1763418350703,2.0,92438.0,92408.0,0.03428]
[1763418350900,0.323,92419.0,92408.0,0.045078]
[1763418351101,0.323,92419.0,92408.0,0.10811112]
[1763418351311,0.323,92419.0,92408.0,0.00013112]
[1763418353326,0.323,92419.0,92408.0,0.00113112]
[1763418353674,0.323,92419.0,92408.0,0.00013112]
[1763418354085,0.323,92419.0,92408.0,0.00113112]
[1763418354507,0.323,92419.0,92408.0,0.01204223]
[1763418355148,0.323,92419.0,92408.0,0.01104223]
[1763418355530,0.323,92419.0,92408.0,0.01204223]
[1763418356677,0.62462428,92430.0,92418.0,0.04577]
[1763418356930,0.62399832,92430.0,92419.0,0.01298434]
[1763418357309,0.62399832,92430.0,92419.0,0.01885977]
[1763418357514,0.62399832,92430.0,92419.0,0.01298434]
[1763418357726,0.96525488,92430.0,92419.0,0.01298434]
[1763418357934,0.00567404,92429.0,92410.0,0.0129856]
[1763418358131,0.00567404,92429.0,92411.0,0.0737]
[1763418358752,0.00567404,92429.0,92412.0,0.01298532]
[1763418358913,0.00567404,92429.0,92413.0,0.00977275]
[1763418359141,0.00567404,92429.0,92414.0,0.01298504]
[1763418359337,0.32867404,92429.0,92414.0,0.01298504]
[1763418359812,0.32867404,92429.0,92428.0,0.03372]
[1763418360607,0.00567404,92429.0,92428.0,0.03372]
[1763418361096,0.00567404,92429.0,92428.0,0.14516]
[1763418361339,0.00567404,92429.0,92428.0,0.159676]
[1763418361943,0.00567404,92429.0,92428.0,0.17265907]
[1763418362121,0.00567404,92429.0,92428.0,0.159676]
[1763418362512,0.00567404,92429.0,92428.0,0.160676]
[1763418362914,0.00567404,92429.0,92428.0,0.159676]
[1763418363279,0.00567404,92429.0,92428.0,0.160676]
[1763418364018,0.00567404,92429.0,92428.0,0.001]
[1763418364816,0.00567404,92429.0,92418.0,0.03372]
[1763418365038,0.00567404,92429.0,92428.0,0.001]
[1763418365721,0.00567404,92429.0,92408.0,0.05820526]
[1763418365722,0.04437404,92429.0,92408.0,0.05820526]
[1763418365937,0.96525488,92418.0,92408.0,0.00013112]
[1763418366155,0.96525488,92418.0,92408.0,0.00937965]
[1763418366402,0.96525488,92418.0,92408.0,0.00013112]
[1763418367486,0.323,92417.0,92408.0,0.00013112]
[1763418367899,0.0387,92409.0,92408.0,0.00013112]
[1763418368459,0.0387,92409.0,92408.0,0.00113112]
[1763418368870,0.0774,92409.0,92408.0,0.00113112]
[1763418369272,0.0774,92409.0,92408.0,0.00013112]
[1763418369657,0.0774,92409.0,92408.0,0.00113112]
[1763418369898,0.09772847,92409.0,92408.0,0.00113112]
[1763418370907,0.09772847,92409.0,92408.0,0.00013112]
[1763418371109,0.09772847,92409.0,92408.0,0.00113112]
[1763418372252,0.10746344,92409.0,92408.0,0.00113112]
[1763418372648,0.1074486,92409.0,92408.0,0.00113112]
[1763418373229,0.09771363,92409.0,92408.0,0.00113112]
[1763418373429,0.1074486,92409.0,92408.0,0.00113112]
[1763418374408,0.42071363,92409.0,92408.0,0.00113112]
[1763418375263,0.23724435,92409.0,92408.0,0.00113112]
[1763418378034,0.0274,92410.0,92408.0,0.00113112]
[1763418379732,2.0,92419.0,92408.0,0.00113112]
[1763418379936,2.0,92419.0,92408.0,0.00013112]
[1763418380290,2.0,92419.0,92408.0,0.00113112]
[1763418380871,2.0,92419.0,92408.0,0.00013112]
[1763418381902,0.00973497,92418.0,92408.0,0.00013112]
[1763418382105,0.10859296,92414.0,92408.0,0.00013112]
[1763418382301,0.00973497,92413.0,92408.0,0.00013112]
[1763418382524,0.00973497,92419.0,92408.0,0.00013112]
[1763418382719,0.10859296,92414.0,92408.0,0.00013112]
[1763418382929,0.00973497,92413.0,92408.0,0.00013112]
[1763418384179,0.00973497,92413.0,92408.0,0.00113112]
[1763418385748,2.0,92412.0,92408.0,0.00113112]
[1763418385943,0.00973497,92411.0,92408.0,0.00113112]
[1763418386561,0.00973497,92411.0,92408.0,0.00013112]
[1763418386962,2.0,92412.0,92408.0,0.00113112]
[1763418387168,2.0,92410.0,92408.0,0.00113112]
[1763418387369,0.00973497,92409.0,92408.0,0.00013112]
[1763418387566,2.00973497,92409.0,92408.0,0.00013112]
[1763418387820,2.06370951,92409.0,92408.0,0.00113112]
[1763418388953,2.06370951,92409.0,92408.0,0.00013112]
[1763418388954,2.34329077,92409.0,92408.0,0.00013112]
[1763418389196,2.323,92409.0,92408.0,0.00013112]
[1763418389398,2.36641874,92409.0,92408.0,0.00013112]
[1763418389598,2.1577287,92409.0,92408.0,0.00013112]
[1763418392354,2.16207564,92409.0,92408.0,0.00013112]
[1763418395114,2.16194887,92409.0,92408.0,0.00013112]
[1763418402767,2.16294887,92409.0,92408.0,0.00013112]
[1763418403193,2.18773973,92409.0,92408.0,0.00013112]
[1763418403587,2.2127186,92409.0,92408.0,0.00013112]
[1763418403853,2.16294887,92409.0,92408.0,0.00013112]
[1763418409794,2.16297358,92409.0,92408.0,0.00013112]
[1763418412445,2.21118688,92409.0,92408.0,0.00013112]
[1763418412698,2.18639602,92409.0,92408.0,0.00013112]
[1763418412873,2.21118688,92409.0,92408.0,0.00013112]
[1763418413863,1.99299861,92409.0,92408.0,0.00013112]
[1763418417744,1.96820775,92409.0,92408.0,0.00013112]
[1763418425393,2.25146417,92409.0,92408.0,0.00013112]
[1763418425616,2.23889861,92409.0,92408.0,0.00013112]
[1763418426214,2.23895017,92409.0,92408.0,0.00013112]
[1763418427033,2.25150088,92409.0,92408.0,0.00013112]
[1763418427340,2.23895017,92409.0,92408.0,0.00013112]
[1763418427539,2.25705388,92409.0,92408.0,0.00013112]
[1763418428168,2.29614481,92409.0,92408.0,0.00013112]
[1763418428365,2.51257394,92409.0,92408.0,0.00013112]
[1763418428566,2.25705388,92409.0,92408.0,0.00013112]
[1763418428989,2.31439528,92409.0,92408.0,0.00013112]
[1763418429185,2.25705388,92409.0,92408.0,0.00013112]
[1763418429562,2.25605388,92409.0,92408.0,0.00013112]
[1763418430172,2.23126302,92409.0,92408.0,0.00013112]
[1763418430502,2.28653524,92409.0,92408.0,0.00013112]
[1763418430732,2.28553524,92409.0,92408.0,0.00013112]
[1763418431055,2.28653524,92409.0,92408.0,0.00013112]
[1763418431252,2.26843153,92409.0,92408.0,0.00013112]
[1763418432844,1.55270447,92407.0,92370.0,0.0004]
[1763418432978,0.1520117,92395.0,92370.0,0.0004]
[1763418433178,1.74850533,92395.0,92370.0,0.0004]
[1763418433593,1.78111319,92395.0,92370.0,0.0004]
[1763418436107,1.78111319,92395.0,92373.0,0.03091]
[1763418436108,1.67252023,92395.0,92373.0,0.03091]
[1763418436313,0.05297458,92395.0,92373.0,0.03091]
[1763418436513,0.02036672,92395.0,92373.0,0.03091]
[1763418436722,0.02036672,92395.0,92373.0,0.0439008]
[1763418437082,2.0,92397.0,92373.0,0.0439008]
[1763418437489,2.0,92399.0,92373.0,0.0439008]
[1763418437707,2.0,92397.0,92373.0,0.0439008]
[1763418437933,2.0,92399.0,92373.0,0.0439008]
[1763418438059,2.0,92397.0,92373.0,0.0439008]
[1763418438471,0.10859296,92400.0,92373.0,0.03091]
[1763418438472,2.0,92399.0,92373.0,0.03091]
[1763418438776,2.0,92397.0,92373.0,0.03091]
[1763418439175,0.323,92396.0,92373.0,0.03091]
[1763418442188,2.0,92399.0,92373.0,0.03091]
[1763418442386,0.10859296,92400.0,92373.0,0.03091]
[1763418442387,2.0,92397.0,92373.0,0.03091]
[1763418442597,2.0,92399.0,92373.0,0.03091]
[1763418442767,2.0,92397.0,92373.0,0.03091]
[1763418443005,2.0,92399.0,92373.0,0.03091]
[1763418443215,2.0,92397.0,92373.0,0.03091]
[1763418443459,2.0,92399.0,92373.0,0.03091]
[1763418443664,2.0,92397.0,92373.0,0.03091]
[1763418443894,2.0,92399.0,92373.0,0.03091]
[1763418444093,0.00973497,92398.0,92373.0,0.03091]
[1763418444304,2.0,92397.0,92373.0,0.03091]
[1763418444510,2.0,92399.0,92373.0,0.09382]
[1763418444710,2.0,92397.0,92373.0,0.09382]
[1763418444939,2.0,92399.0,92373.0,0.09382]
[1763418445107,2.0,92397.0,92373.0,0.09382]
[1763418445537,2.0,92399.0,92373.0,0.09382]
[1763418445744,0.00973497,92398.0,92373.0,0.09382]
[1763418445981,2.0,92397.0,92373.0,0.09382]
[1763418446201,2.0,92399.0,92373.0,0.09382]
[1763418446428,2.0,92397.0,92373.0,0.09382]
[1763418446647,0.10859296,92400.0,92373.0,0.09382]
[1763418446892,0.00973497,92399.0,92373.0,0.09382]
[1763418448641,0.00973497,92399.0,92374.0,0.01299066]
[1763418449268,0.02034365,92398.0,92374.0,0.01299066]
[1763418449466,0.03007862,92397.0,92374.0,0.01299066]
[1763418449714,0.02034365,92396.0,92374.0,0.01299066]
[1763418449928,0.02034365,92395.0,92374.0,0.01299066]
[1763418450498,0.02034365,92395.0,92373.0,0.09382]
[1763418452612,0.05294633,92395.0,92373.0,0.09382]
[1763418452815,0.05294633,92395.0,92374.0,0.01299066]
[1763418455698,0.05294633,92395.0,92376.0,0.06109]
[1763418455904,0.03260268,92395.0,92386.0,0.03123]
[1763418456109,0.03260268,92395.0,92388.0,0.06109]
[1763418456888,0.03260268,92395.0,92386.0,0.03123]
[1763418456889,0.03260268,92395.0,92394.0,0.10513221]
[1763418457510,0.03260268,92395.0,92394.0,0.09900019]
[1763418460532,0.03260268,92395.0,92394.0,0.10000019]
[1763418466142,0.03260268,92395.0,92394.0,0.03891019]
[1763418467063,1.33323196,92404.0,92394.0,0.10000019]
[1763418467202,1.33323196,92404.0,92403.0,0.06891]
[1763418467416,1.33323196,92413.0,92403.0,0.06891]
[1763418467616,0.03259454,92404.0,92403.0,0.06891]
[1763418467820,0.03259454,92404.0,92403.0,0.03123]
[1763418468762,0.03259454,92404.0,92399.0,0.03123]
[1763418469091,0.03259454,92404.0,92399.0,0.04178379]
[1763418469729,0.03259454,92404.0,92403.0,0.03768]